{"text_format":"2","workbook":"xlsx","n_sheets":3,"sheets":["Sheet1","Sheet2","Sheet3"],"not_rendered":{"charts":0,"images":0,"macros":0,"external_links":0,"defined_names":0,"comments":0,"pivot_tables":0},"unopened":[],"bounds":{"document_bytes":16777216,"sheet_cells":100000,"run_cost":"one","rows_first":2000,"rows_last":500,"rows_between":2000,"halvings":0,"cell_chars":16384,"cell_head_chars":4096},"cells_cut":0,"cells_raw":0,"read":"whole","date_system":"1900"}

{"sheet":"Sheet1","index":0,"n_rows":22,"n_cols":10,"rows_kept":22,"cut":false,"hidden":false,"merged":[]}
["Item","Scale","Price",null,null,"Turkeys","Scale","Min","Max"]
["Temperature Probe",3,{"$f":"ROUND($A$17*B2,0)","v":9},null,null,"Green (Organic)",2,{"$f":"ROUND(G2*$J$10*$J$12,0)","v":20},{"$f":"ROUND(G2*$J$10*$J$14,0)","v":44}]
["Turkey Frills",1,{"$f":"ROUND($A$17*B3,0)","v":3},null,null,"Blue (Pastured)",1.75,{"$f":"ROUND(G3*$J$10*$J$12,0)","v":18},{"$f":"ROUND(G3*$J$10*$J$14,0)","v":39}]
["Marinade (Cheap)",0.5,2,null,null,"Brown (Free Range)",1.25,13,28]
["Marinade (Medium)",2,6,null,null,"Red (General)",1,10,22]
["Marinade (Expensive)",3.5,11,null,null,"Tan (Crap Turkey)",0.85,9,19]
[null,null,0]
["Oven Replacement Bulb",5,15]
["Timer",2,6,{"$nulls":6},"Price Per Pound"]
["Cookbook",1,3,{"$nulls":6},1]
["Scott's Special Stuffing",2,6,{"$nulls":6},"Min Weight"]
["Exquisite Stuffing",1,3,{"$nulls":6},10]
["Repurposed Stuffing",0.5,2,{"$nulls":6},"Max Weight"]
[{"$nulls":9},22]
[null,"Sum",{"$f":"SUM(C3:C13)","v":57}]
["Price per Scale","' / 3",{"$f":"C15/(COUNT(C2:C13)-3)","v":6.333333333333333}]
[{"$f":"3","v":3}]
[]
[]
[]
[{"$nulls":5},"Total Money"]
[{"$nulls":5},{"$f":"ROUND(I4+C16,0)","v":34}]

{"sheet":"Sheet2","index":1,"n_rows":0,"n_cols":0,"rows_kept":0,"cut":false,"hidden":false,"merged":[]}

{"sheet":"Sheet3","index":2,"n_rows":0,"n_cols":0,"rows_kept":0,"cut":false,"hidden":false,"merged":[]}